lending/lending_fUSD_20250516
["ID","MTS","AMOUNT","RATE_DAILY","PERIOD"]
[361290918,1747426268548,-400.0,0.00016986,2]
[361290919,1747426268559,-893.46,0.00016986,2]
[361290920,1747426268569,-1282.7,0.00016986,2]
[361290921,1747426268578,-400.0,0.00016986,2]
[361290922,1747426268587,-456.02,0.00016986,2]
[361290923,1747426268596,-400.0,0.00016986,2]
[361290924,1747426268605,-640.85,0.00016986,2]
[361290925,1747426268614,-767.85,0.00016986,2]
[361290926,1747426268624,-400.0,0.00016986,2]
[361290927,1747426268633,-790.19,0.00016986,2]
[361290928,1747426268642,-500.0,0.00016986,2]
[361290929,1747426268651,-466.21,0.00016986,2]
[361290930,1747426268660,-274.7829717,0.00016986,2]
[361290931,1747426268669,-471.36,0.00016986,2]
[361290932,1747426268679,-3271.29,0.00016986,2]
[361290933,1747426268688,-1409.42,0.00016986,2]
[361290934,1747426268697,-476.96,0.00016986,2]
[361290935,1747426268706,-400.0,0.00016986,2]
[361290936,1747426268715,-977.9,0.00016986,2]
[361290937,1747426268724,-400.0,0.00016986,2]
[361290938,1747426268733,-1459.74,0.00016986,2]
[361290939,1747426268742,-400.0,0.00016986,2]
[361290940,1747426268751,-727.49,0.00016986,2]
[361290941,1747426268760,-260.935554,0.00016986,2]
[361290942,1747426268770,-1251.24,0.00016986,2]
[361290943,1747426268779,-500.0,0.00016986,2]
[361290944,1747426268789,-907.74,0.00016986,2]
[361290945,1747426268800,-400.0,0.00016986,2]
[361290946,1747426268809,-400.0,0.00016986,2]
[361290947,1747426268818,-587.956256,0.00016986,2]
[361290948,1747426268828,-412.91,0.00016986,2]
[361290949,1747426268838,-260.935557,0.00016986,2]
[361290950,1747426268847,-428.908007,0.00016986,2]
[361290951,1747426268856,-763.28,0.00016986,2]
[361290952,1747426268865,-587.956259,0.00016986,2]
[361290953,1747426268875,-803.56,0.00016986,2]
[361290954,1747426268885,-400.0,0.00016986,2]
[361290955,1747426268894,-428.908011,0.00016986,2]
[361290956,1747426268903,-400.0,0.00016986,2]
[361290957,1747426268912,-400.0,0.00016986,2]
[361290958,1747426268921,-400.0,0.00016986,2]
[361290959,1747426268930,-400.0,0.00016986,2]
[361290960,1747426268939,-557.08,0.00016986,2]
[361290961,1747426268948,-662.7,0.00016986,2]
[361290962,1747426268957,-484.39,0.00016986,2]
[361290963,1747426268968,-496.5,0.00016986,2]
[361290964,1747426268977,-413.65,0.00016986,2]
[361290965,1747426268986,-4560.85,0.00016986,2]
[361290966,1747426268996,-400.0,0.00016986,2]
[361290967,1747426269006,-400.0,0.00016986,2]
[361290968,1747426269018,-400.0,0.00016986,2]
[361290969,1747426269028,-438.78,0.00016986,2]
[361290970,1747426269037,-400.0,0.00016986,2]
[361290971,1747426269047,-400.0,0.00016986,2]
[361290972,1747426269056,-23461.15,0.00016986,2]
[361290973,1747426269065,-499.07,0.00016986,2]
[361290974,1747426269074,-609.34,0.00016986,2]
[361290975,1747426269083,-576.54,0.00016986,2]
[361290976,1747426269092,-1719.49,0.00016986,2]
[361290977,1747426269101,-400.0,0.00016986,2]
[361290978,1747426269110,-400.0,0.00016986,2]
[361290979,1747426269120,-725.99,0.00016986,2]
[361290980,1747426269129,-616.42,0.00016986,2]
[361290981,1747426269138,-1048.33,0.00016986,2]
[361290982,1747426269146,-400.0,0.00016986,2]
[361290983,1747426269155,-1612.17,0.00016986,2]
[361290984,1747426269165,-400.0,0.00016986,2]
[361290985,1747426269174,-400.0,0.00016986,2]
[361290986,1747426269183,-489.13473753,0.00016986,2]
[361290987,1747426269192,-1000.0,0.00016986,2]
[361290988,1747426269202,-1325.06,0.00016986,2]
[361290989,1747426269212,-662.1,0.00016986,2]
[361290990,1747426269221,-400.0,0.00016986,2]
[361290991,1747426269230,-400.0,0.00016986,2]
[361290992,1747426269239,-400.0,0.00016986,2]
[361290993,1747426269248,-601.19,0.00016986,2]
[361290994,1747426269257,-6138.62,0.00016986,2]
[361290995,1747426269266,-574.02,0.00016986,2]
[361290996,1747426269275,-959.31,0.00016986,2]
[361290997,1747426269285,-550.83,0.00016986,2]
[361290998,1747426269295,-400.0,0.00016986,2]
[361290999,1747426269304,-400.0,0.00016986,2]
[361291000,1747426269315,-3855.52,0.00016986,2]
[361291001,1747426269324,-400.0,0.00016986,2]
[361291002,1747426269333,-662.39,0.00016986,2]
[361291003,1747426269342,-400.0,0.00016986,2]
[361291004,1747426269351,-400.0,0.00016986,2]
[361291005,1747426269361,-1083.34,0.00016986,2]
[361291006,1747426269371,-400.0,0.00016986,2]
[361291007,1747426269380,-756.49,0.00016986,2]
[361291008,1747426269390,-3025.91,0.00016986,2]
[361291009,1747426269399,-400.0,0.00016986,2]
[361291010,1747426269409,-1010.99,0.00016986,2]
[361291011,1747426269418,-938.69,0.00016986,2]
[361291012,1747426269427,-423.85829697,0.00016986,2]
[361291013,1747426269436,-400.0,0.00016986,2]
[361291014,1747426269445,-884.21,0.00016986,2]
[361291015,1747426269455,-542.53,0.00016986,2]
[361291016,1747426269463,-400.0,0.00016986,2]
[361291017,1747426269472,-400.0,0.00016986,2]
[361291018,1747426269481,-589.57,0.00016986,2]
[361291019,1747426269491,-856.62,0.00016986,2]
[361291020,1747426269500,-658.16,0.00016986,2]
[361291021,1747426269510,-400.0,0.00016986,2]
[361291022,1747426269519,-415.98,0.00016986,2]
[361291023,1747426269529,-400.0,0.00016986,2]
[361291024,1747426269538,-486.79,0.00016986,2]
[361291025,1747426269548,-1231.04,0.00016986,2]
[361291026,1747426269557,-400.0,0.00016986,2]
[361291027,1747426269567,-614.53,0.00016986,2]
[361291028,1747426269576,-550.96,0.00016986,2]
[361291029,1747426269585,-460.01,0.00016986,2]
[361291030,1747426269594,-500.0,0.00016986,2]
[361291031,1747426269603,-712.11,0.00016986,2]
[361291032,1747426269613,-1840.95,0.00016986,2]
[361291033,1747426269622,-508.94,0.00016986,2]
[361291034,1747426269631,-400.0,0.00016986,2]
[361291035,1747426269640,-1540.43,0.00016986,2]
[361291036,1747426269649,-1027.54,0.00016986,2]
[361291037,1747426269658,-1894.58,0.00016986,2]
[361291038,1747426269667,-561.06,0.00016986,2]
[361291039,1747426269676,-3119.43,0.00016986,2]
[361291040,1747426269686,-400.0,0.00016986,2]
[361291041,1747426269695,-400.0,0.00016986,2]
[361291042,1747426269704,-1318.73,0.00016986,2]
[361291043,1747426269713,-89.49672444,0.00016986,2]
[361291044,1747426270361,-306.10140945,0.00016986,2]
[361291045,1747426271608,-750.0,0.00016218,2]
[361291046,1747426271618,-620.81695419,0.00016438,2]
[361291047,1747426271647,-207.73304581,0.00016438,2]
[361291048,1747426271656,-888.75,0.00016438,2]
[361291049,1747426271667,-500.0,0.00016438,2]
[361291050,1747426271676,-613.74,0.00016438,2]
[361291051,1747426271687,-400.0,0.00016438,2]
[361291052,1747426271697,-554.026883,0.00016438,2]
[361291053,1747426271707,-2101.63,0.00016438,2]
[361291054,1747426271716,-467.49,0.00016438,2]
[361291055,1747426271726,-151.0,0.00016438,2]
[361291056,1747426271735,-554.026883,0.00016438,2]
[361291057,1747426271744,-400.0,0.00016438,2]
[361291058,1747426271754,-230.54267,0.00016438,2]
[361291059,1747426271765,-400.0,0.00016438,2]
[361291060,1747426271776,-418.24,0.00016712,2]
[361291061,1747426271786,-837.86,0.00016712,2]
[361291062,1747426271800,-554.026883,0.00016712,2]
[361291063,1747426271809,-828.55,0.00016712,2]
[361291064,1747426271819,-888.75,0.00016712,2]
[361291065,1747426271829,-554.026883,0.00016712,2]
[361291066,1747426271839,-554.026883,0.00016712,2]
[361291067,1747426271849,-613.74,0.00016712,2]
[361291068,1747426271858,-554.026883,0.00016712,2]
[361291069,1747426271869,-400.0,0.00016712,2]
[361291070,1747426271878,-2101.63,0.00016712,2]
[361291071,1747426271888,-554.026883,0.00016973,2]
[361291072,1747426271898,-4.40186611,0.00016986,2]
[361291073,1747426271907,-12626.7,0.00016986,2]
[361291074,1747426271917,-400.0,0.00016986,2]
[361291075,1747426271926,-7263.49,0.00016986,2]
[361291076,1747426271936,-1849.45,0.00016986,2]
[361291077,1747426271947,-400.0,0.00016986,2]
[361291078,1747426271957,-2318.32,0.00016986,2]
[361291079,1747426271968,-151.0,0.00016986,2]
[361291080,1747426271978,-1304.84,0.00016986,2]
[361291081,1747426271987,-7188.53,0.00016986,2]
[361291082,1747426271997,-797.6,0.00016986,2]
[361291083,1747426272007,-755.75,0.00016986,2]
[361291084,1747426272019,-400.0,0.00016986,2]
[361291085,1747426272028,-400.0,0.00016986,2]
[361291086,1747426272039,-2042.96,0.00016986,2]
[361291087,1747426272049,-450.19,0.00016986,2]
[361291088,1747426272058,-3621.3,0.00016986,2]
[361291089,1747426272068,-400.0,0.00016986,2]
[361291090,1747426272077,-1563.09,0.00016986,2]
[361291091,1747426272087,-400.0,0.00016986,2]
[361291092,1747426272096,-400.0,0.00016986,2]
[361291093,1747426272106,-400.0,0.00016986,2]
[361291094,1747426272115,-1196.28,0.00016986,2]
[361291095,1747426272125,-1576.06,0.00016986,2]
[361291096,1747426272135,-610.58,0.00016986,2]
[361291097,1747426272144,-1011.24,0.00016986,2]
[361291098,1747426272154,-1791.45,0.00016986,2]
[361291099,1747426272164,-400.0,0.00016986,2]
[361291100,1747426272175,-3969.63,0.00016986,2]
[361291101,1747426272185,-1139.13,0.00016986,2]
[361291102,1747426272194,-400.0,0.00016986,2]
[361291103,1747426272203,-851.76,0.00016986,2]
[361291104,1747426272213,-400.0,0.00016986,2]
[361291105,1747426272222,-348.74635921,0.00016986,2]
[361291106,1747426272232,-3182.98,0.00016986,2]
[361291107,1747426272241,-989.31,0.00016986,2]
[361291108,1747426272251,-911.27,0.00016986,2]
[361291109,1747426272260,-3303.23,0.00016986,2]
[361291110,1747426272270,-3317.75,0.00016986,2]
[361291111,1747426272279,-670.82,0.00016986,2]
[361291112,1747426272289,-400.0,0.00016986,2]
[361291113,1747426272300,-556.5,0.00016986,2]
[361291114,1747426272310,-2333.45,0.00016986,2]
[361291115,1747426272320,-2142.68,0.00016986,2]
[361291116,1747426272331,-400.0,0.00016986,2]
[361291117,1747426272342,-400.0,0.00016986,2]
[361291118,1747426272352,-400.0,0.00016986,2]
[361291119,1747426272362,-151.0,0.00016986,2]
[361291120,1747426272373,-2007.06,0.00016986,2]
[361291121,1747426272384,-400.0,0.00016986,2]
[361291122,1747426272394,-400.0,0.00016986,2]
[361291123,1747426272404,-821.45,0.00016986,2]
[361291124,1747426272415,-794.117652,0.00016986,2]
[361291125,1747426272425,-462.72,0.00016986,2]
[361291126,1747426272436,-400.0,0.00016986,2]
[361291127,1747426272447,-1660.77,0.00016986,2]
[361291128,1747426272458,-2863.57,0.00016986,2]
[361291129,1747426272468,-411.24,0.00016986,2]
[361291130,1747426272477,-971.77,0.00016986,2]
[361291131,1747426272487,-246.0238326,0.00016986,2]
[361291132,1747426272496,-1184.07,0.00016986,2]
[361291133,1747426272505,-794.117655,0.00016986,2]
[361291134,1747426272514,-400.0,0.00016986,2]
[361291135,1747426272525,-286.35146999,0.00016986,2]
[361291136,1747426272534,-800.17,0.00016986,2]
[361291137,1747426272556,-291.64796616,0.00016986,2]
[361291138,1747426272568,-400.0,0.00016986,2]
[361291139,1747426272578,-400.0,0.00016986,2]
[361291140,1747426272589,-889.95,0.00016986,2]
[361291141,1747426272599,-442.59,0.00016986,2]
[361291142,1747426272609,-400.0,0.00016986,2]
[361291143,1747426272619,-2898.19,0.00016986,2]
[361291144,1747426272630,-1206.91,0.00016986,2]
[361291145,1747426272640,-400.0,0.00016986,2]
[361291146,1747426272650,-3478.05,0.00016986,2]
[361291147,1747426272661,-1018.02,0.00016986,2]
[361291148,1747426272671,-400.0,0.00016986,2]
[361291149,1747426272682,-899.06,0.00016986,2]
[361291150,1747426272692,-15828.3,0.00016986,2]
[361291151,1747426272704,-792.21,0.00016986,2]
[361291152,1747426273086,-3102.61,0.00016986,2]
[361291153,1747426273096,-3117.44,0.00016986,2]
[361291154,1747426273105,-1572.59,0.00016986,2]
[361291155,1747426273115,-11945.33,0.00016986,2]
[361291156,1747426273125,-400.0,0.00016986,2]
[361291157,1747426273134,-2817.85,0.00016986,2]
[361291158,1747426273143,-482.81,0.00016986,2]
[361291159,1747426273152,-400.0,0.00016986,2]
[361291160,1747426273161,-151.0,0.00016986,2]
[361291161,1747426273170,-647.84,0.00016986,2]
[361291162,1747426273179,-706.64,0.00016986,2]
[361291163,1747426273188,-400.0,0.00016986,2]
[361291164,1747426273198,-400.0,0.00016986,2]
[361291165,1747426273207,-1181.06,0.00016986,2]
[361291166,1747426273216,-2554.49,0.00016986,2]
[361291167,1747426273225,-7012.42,0.00016986,2]
[361291168,1747426273235,-400.0,0.00016986,2]
[361291169,1747426273244,-1007.91,0.00016986,2]
[361291170,1747426273254,-2408.22,0.00016986,2]
[361291171,1747426273263,-1249.97,0.00016986,2]
[361291172,1747426273272,-1053.01,0.00016986,2]
[361291173,1747426273282,-400.0,0.00016986,2]
[361291174,1747426273291,-5447.95,0.00016986,2]
[361291175,1747426273300,-400.0,0.00016986,2]
[361291176,1747426273309,-400.0,0.00016986,2]
[361291177,1747426273319,-1955.8,0.00016986,2]
[361291178,1747426273328,-400.0,0.00016986,2]
[361291179,1747426273339,-1443.56,0.00016986,2]
[361291180,1747426273348,-400.0,0.00016986,2]
[361291181,1747426273357,-400.0,0.00016986,2]
[361291182,1747426273368,-467.46,0.00016986,2]
[361291183,1747426273377,-1053.67,0.00016986,2]
[361291184,1747426273387,-530.82,0.00016986,2]
[361291185,1747426273396,-8692.09,0.00016986,2]
[361291186,1747426273405,-500.0,0.00016986,2]
[361291187,1747426273414,-1366.11,0.00016986,2]
[361291188,1747426273423,-1286.34,0.00016986,2]
[361291189,1747426273432,-604.64,0.00016986,2]
[361291190,1747426273441,-1292.1,0.00016986,2]
[361291191,1747426273450,-759.5,0.00016986,2]
[361291192,1747426273459,-516.93,0.00016986,2]
[361291193,1747426273468,-2894.19,0.00016986,2]
[361291194,1747426273478,-857.07,0.00016986,2]
[361291195,1747426273487,-400.0,0.00016986,2]
[361291196,1747426273496,-2279.03,0.00016986,2]
[361291197,1747426273505,-400.0,0.00016986,2]
[361291198,1747426273515,-485.68,0.00016986,2]
[361291199,1747426273527,-405.16,0.00016986,2]
[361291200,1747426273539,-400.0,0.00016986,2]
[361291201,1747426273550,-949.05,0.00016986,2]
[361291202,1747426273561,-902.44,0.00016986,2]
[361291203,1747426273571,-10956.5,0.00016986,2]
[361291204,1747426273580,-853.75,0.00016986,2]
[361291205,1747426273590,-524.87,0.00016986,2]
[361291206,1747426273599,-7763.45,0.00016986,2]
[361291207,1747426273609,-5592.41,0.00016986,2]
[361291208,1747426273619,-434.51,0.00016986,2]
[361291209,1747426273628,-561.81,0.00016986,2]
[361291210,1747426273638,-2654.68,0.00016986,2]
[361291211,1747426273648,-644.93,0.00016986,2]
[361291212,1747426273657,-2941.2,0.00016986,2]
[361291213,1747426273667,-623.34,0.00016986,2]
[361291214,1747426273676,-721.09,0.00016986,2]
[361291215,1747426273686,-693.92,0.00016986,2]
[361291216,1747426273695,-574.76,0.00016986,2]
[361291217,1747426273705,-430.8,0.00016986,2]
[361291218,1747426273714,-955.3,0.00016986,2]
[361291219,1747426273724,-655.34,0.00016986,2]
[361291220,1747426273733,-400.0,0.00016986,2]
[361291221,1747426273742,-1389.48,0.00016986,2]
[361291222,1747426273751,-1358.52,0.00016986,2]
[361291223,1747426273761,-7419.37,0.00016986,2]
[361291224,1747426273771,-1999.48,0.00016986,2]
[361291225,1747426273780,-860.29,0.00016986,2]
[361291226,1747426273790,-267.35802218,0.00016986,2]
[361291227,1747426273802,-400.0,0.00016986,2]
[361291228,1747426273811,-586.68,0.00016986,2]
[361291229,1747426273821,-451.53336627,0.00016986,2]
[361291230,1747426273830,-400.0,0.00016986,2]
[361291231,1747426273841,-2035.15,0.00016986,2]
[361291232,1747426273851,-1099.8,0.00016986,2]
[361291233,1747426273861,-805.47,0.00016986,2]
[361291234,1747426273871,-400.0,0.00016986,2]
[361291235,1747426273881,-22631.55,0.00016986,2]
[361291236,1747426273891,-400.0,0.00016986,2]
[361291237,1747426273899,-527.31,0.00016986,2]
[361291238,1747426273908,-400.0,0.00016986,2]
[361291239,1747426273918,-1138.22,0.00016986,2]
[361291240,1747426273928,-993.35,0.00016986,2]
[361291241,1747426273937,-602.14,0.00016986,2]
[361291242,1747426273946,-465.95043023,0.00016986,2]
[361291243,1747426273955,-759.68,0.00016986,2]
[361291244,1747426273964,-12280.2,0.00016986,2]
[361291245,1747426273974,-400.0,0.00016986,2]
[361291246,1747426273983,-1647.99,0.00016986,2]
[361291247,1747426273992,-447.24,0.00016986,2]
[361291248,1747426274001,-400.0,0.00016986,2]
[361291249,1747426274010,-1605.37,0.00016986,2]
[361291250,1747426274020,-709.35,0.00016986,2]
[361291251,1747426274029,-2103.15,0.00016986,2]
[361291252,1747426274038,-524.99797367,0.00016986,2]
[361291253,1747426274055,-101.63202633,0.00016986,2]
[361291254,1747426274064,-400.0,0.00016986,2]
[361291255,1747426274073,-19583.11,0.00016986,2]
[361291256,1747426274082,-158.13482514,0.00016986,2]
[361291257,1747426274091,-401.48,0.00016986,2]
[361291258,1747426274101,-866.68,0.00016986,2]
[361291259,1747426274110,-1626.91599841,0.00016986,2]
[361291262,1747426853943,158.39,0.00021945,30]
[361291263,1747426954868,168.66204336,0.00027397,120]
[361291264,1747427108128,12456.43,0.00014,2]
[361291267,1747427236765,10000.00000099,0.00027,120]
[361291268,1747427272051,300.0,0.00024658,30]
[361291270,1747427319540,9999.99999901,0.00027,120]
[361291277,1747427431660,-490.3,0.00013244,2]
[361291279,1747427431671,-474.12,0.00013699,2]
[361291280,1747427431682,-300.0,0.00013972,2]
[361291281,1747427431691,-1200.0,0.00013972,2]
[361291282,1747427431702,-500.0,0.00013973,2]
[361291283,1747427431712,-500.0,0.00013973,2]
[361291284,1747427431721,-500.0,0.00013973,2]
[361291285,1747427431731,-500.0,0.00013973,2]
[361291286,1747427431740,-553.24587881,0.00013973,2]
[361291287,1747427431750,-500.0,0.00013973,2]
[361291288,1747427431759,-507.35604364,0.00013973,2]
[361291289,1747427431769,-229.51079889,0.00013973,2]
[361291290,1747427431778,-500.0,0.00013973,2]
[361291291,1747427431788,-500.0,0.00013973,2]
[361291292,1747427431798,-165.11,0.0001399,2]
[361291293,1747427431807,-169.81378246,0.00013999,2]
[361291294,1747427431817,-150.0,0.00013999,2]
[361291295,1747427431826,-602418.82806382,0.00014,2]
[361291296,1747427431838,-89494.25526934,0.00014,2]
[361291297,1747427431906,-92924.3165916,0.00014,2]
[361291301,1747427437718,-255879.66219431,0.00014,2]
[361291302,1747427437817,-79783.63695301,0.00014,2]
[361291303,1747427437829,-39647.80579492,0.00014,2]
[361291304,1747427437839,-216.0,0.000141,2]
[361291305,1747427437848,-378.94080944,0.00014221,2]
[361291306,1747427437858,-1000.0,0.00014521,2]
[361291307,1747427437867,-1015.39672217,0.00014521,2]
[361291308,1747427437877,-1000.0,0.00014521,2]
[361291309,1747427437886,-1000.0,0.00014521,2]
[361291310,1747427437896,-992.64770274,0.00014521,2]
[361291311,1747427437905,-1000.0,0.00014521,2]
[361291312,1747427437915,-2751.0,0.00014689,2]
[361291313,1747427437924,-378.94080938,0.00014741,2]
[361291314,1747427437933,-619.37,0.00014828,2]
[361291315,1747427437942,-2468.24244444,0.000149,2]
[361291316,1747427437952,-1500.0,0.00015068,2]
[361291317,1747427437961,-500.0,0.00015068,2]
[361291318,1747427437970,-500.0,0.00015068,2]
[361291319,1747427437980,-1500.0,0.00015068,2]
[361291320,1747427437989,-255.0,0.00015119,2]
[361291321,1747427437999,-2468.24244422,0.00015141,2]
[361291322,1747427438008,-150.0,0.00015198,7]
[361291323,1747427438018,-378.94080938,0.00015262,2]
[361291324,1747427438027,-420.0,0.00015307,2]
[361291325,1747427438036,-5811.18435321,0.00015349,2]
[361291326,1747427438045,-1680.0,0.00015369,2]
[361291327,1747427438056,-2468.24244422,0.00015383,2]
[361291328,1747427438066,-159.85,0.00015449,2]
[361291329,1747427438075,-490.3,0.00015508,2]
[361291330,1747427438084,-5811.18435315,0.0001555,2]
[361291331,1747427438094,-1957.76459498,0.00015616,2]
[361291332,1747427438103,-2000.0,0.00015616,2]
[361291333,1747427438113,-2468.24244422,0.00015624,2]
[361291334,1747427438123,-200.0,0.00015637,2]
[361291335,1747427438132,-200.0,0.0001564,2]
[361291336,1747427438142,-436.37,0.00015643,2]
[361291338,1747427438151,-207.4,0.00015691,2]
[361291339,1747427438160,-200.0,0.00015696,2]
[361291340,1747427438170,-4056.46,0.000157,2]
[361291341,1747427438181,-4056.46,0.000157,2]
[361291342,1747427438191,-4056.46,0.000157,2]
[361291343,1747427438200,-4056.46,0.000157,2]
[361291344,1747427438209,-5811.18435315,0.00015751,2]
[361291345,1747427438219,-378.94080938,0.00015782,2]
[361291346,1747427438228,-500.0,0.00015801,2]
[361291347,1747427438237,-2468.24244422,0.00015866,2]
[361291348,1747427438246,-180.8,0.00015869,2]
[361291349,1747427438256,-4056.46,0.000159,2]
[361291350,1747427438265,-5811.18435315,0.00015953,2]
[361291351,1747427438273,-2468.24244422,0.00016107,2]
[361291352,1747427438282,-5811.18435315,0.00016154,2]
[361291353,1747427438291,-2500.0,0.00016164,2]
[361291354,1747427438300,-201.03,0.00016219,2]
[361291355,1747427438309,-5184.33150309,0.00016232,2]
[361291356,1747427438317,-378.94080938,0.00016302,2]
[361291357,1747427438326,-2468.24244422,0.00016348,2]
[361291358,1747427438335,-5811.18435315,0.00016355,2]
[361291359,1747427438345,-2783.46972628,0.00016398,2]
[361291360,1747427438354,-1634.437,0.00016428,2]
[361291361,1747427438363,-179.926,0.00016428,2]
[361291362,1747427438373,-151.0,0.00016428,2]
[361291363,1747427438383,-599.60298507,0.00016428,2]
[361291364,1747427438394,-668.65185757,0.00016428,2]
[361291365,1747427438403,-172.400668,0.00016438,2]
[361291366,1747427438413,-400.0,0.00016438,2]
[361291367,1747427438422,-481.41,0.00016438,2]
[361291368,1747427438431,-866.23,0.00016438,2]
[361291369,1747427438440,-400.0,0.00016438,2]
[361291370,1747427438449,-400.0,0.00016438,2]
[361291371,1747427438457,-400.0,0.00016438,2]
[361291372,1747427438466,-633.89,0.00016438,2]
[361291373,1747427438475,-400.0,0.00016438,2]
[361291374,1747427438484,-500.0,0.00016438,2]
[361291375,1747427438493,-400.0,0.00016438,2]
[361291376,1747427438502,-400.0,0.00016438,2]
[361291377,1747427438511,-216.71943822,0.00016438,2]
[361291378,1747427438521,-169.54676714,0.00016438,2]
[361291379,1747427438529,-400.0,0.00016438,2]
[361291380,1747427438539,-400.0,0.00016438,2]
[361291381,1747427438547,-400.0,0.00016438,2]
[361291382,1747427438556,-400.0,0.00016438,2]
[361291383,1747427438565,-400.0,0.00016438,2]
[361291384,1747427438574,-400.0,0.00016438,2]
[361291385,1747427438583,-400.0,0.00016438,2]
[361291386,1747427438592,-352.93806929,0.00016438,2]
[361291387,1747427438601,-400.0,0.00016438,2]
[361291388,1747427438611,-400.0,0.00016438,2]
[361291389,1747427438620,-400.0,0.00016438,2]
[361291390,1747427438629,-442.34,0.00016438,2]
[361291391,1747427438641,-400.0,0.00016438,2]
[361291392,1747427438651,-500.0,0.00016438,2]
[361291393,1747427438659,-400.0,0.00016438,2]
[361291394,1747427438668,-400.0,0.00016438,2]
[361291395,1747427438679,-400.0,0.00016438,2]
[361291396,1747427438688,-400.0,0.00016438,2]
[361291397,1747427438697,-400.0,0.00016438,2]
[361291398,1747427438706,-400.0,0.00016438,2]
[361291399,1747427438717,-439.9,0.00016438,2]
[361291400,1747427438726,-400.0,0.00016438,2]
[361291401,1747427438734,-400.0,0.00016438,2]
[361291402,1747427438744,-400.0,0.00016438,2]
[361291403,1747427438753,-400.0,0.00016438,2]
[361291404,1747427438762,-400.0,0.00016438,2]
[361291405,1747427438771,-400.0,0.00016438,2]
[361291406,1747427438780,-400.0,0.00016438,2]
[361291407,1747427438788,-400.0,0.00016438,2]
[361291408,1747427438798,-400.0,0.00016438,2]
[361291409,1747427438807,-400.0,0.00016438,2]
[361291410,1747427438816,-245.72918779,0.00016438,2]
[361291411,1747427438825,-467.07,0.00016438,2]
[361291412,1747427438834,-400.0,0.00016438,2]
[361291413,1747427438843,-400.0,0.00016438,2]
[361291414,1747427438852,-400.0,0.00016438,2]
[361291415,1747427438861,-400.0,0.00016438,2]
[361291416,1747427438871,-606.93,0.00016438,2]
[361291417,1747427438880,-511.23,0.00016438,2]
[361291418,1747427438889,-400.0,0.00016438,2]
[361291419,1747427438899,-400.0,0.00016438,2]
[361291420,1747427438908,-696.99,0.00016438,2]
[361291421,1747427438917,-400.0,0.00016438,2]
[361291422,1747427438926,-400.0,0.00016438,2]
[361291423,1747427438935,-400.98,0.00016438,2]
[361291424,1747427438945,-400.0,0.00016438,2]
[361291425,1747427438955,-161.85532943,0.00016438,2]
[361291426,1747427438964,-400.0,0.00016438,2]
[361291427,1747427438973,-400.0,0.00016438,2]
[361291428,1747427438983,-400.0,0.00016438,2]
[361291429,1747427438992,-658.63,0.00016438,2]
[361291430,1747427439001,-400.0,0.00016438,2]
[361291431,1747427439010,-189.49863034,0.00016438,2]
[361291432,1747427439019,-400.0,0.00016438,2]
[361291433,1747427439029,-208.75107771,0.00016438,2]